Cogmind - Beta 16 @@@ ROGUE MODE // 2026.01.27 @ 17:57:57 Player: Assis Result: Destroyed by S-27 Virus with Autogun Performance ------------- Evolutions (3) 1500 Regions Visited (4) 800 Robots Destroyed (39) 195 Value Destroyed (818) 818 Prototype IDs (1) 20 Alien Tech Used (0) 0 Bonus (0) 0 TOTAL SCORE: 3333 Bonus ------- None Cogmind --------- Core Integrity 0/700 Matter 294/300 Energy 67/100 System Corruption 6% Temperature Cool (0) Movement Core (200) Ox3 Location -7/Factory Parts ------- > --- POWER (1) -------- (None) > --- PROPULSION (2) --- (None) > --- UTILITY (8) ------ Visual Processing Unit Improved Terrain Scan Processor Advanced Targeting Computer Actuator Array Actuator Array > --- WEAPON (2) ------- (None) > --- INVENTORY (5) ---- Armored Treads Armored Treads Improved Terrain Scan Processor Remote Datajack Peak State ------------ > --- POWER ------------ Light Ion Engine > --- PROPULSION ------- Gravmag System Gravmag System > --- UTILITY ---------- Structural Scanner Visual Processing Unit Improved Terrain Scan Processor Seismic Detector Advanced Targeting Computer Actuator Array Actuator Array Actuator Array > --- WEAPON ----------- Heavy Flail Chainsword > --- INVENTORY -------- Armored Treads Armored Treads Improved Terrain Scan Processor Remote Datajack [Rating: 36] Favorites ----------- Power Ion Engine Engine Ion Engine Power Core Light Nuclear Core Propulsion Light Treads Treads Light Treads Hover Unit Gravmag System Utility Terrain Scan Processor Device Seismic Detector Processor Terrain Scan Processor Protection Hardened Medium Armor Plating Weapon Mining Laser Energy Gun Advanced Beam Rifle Ballistic Gun Light Assault Rifle Special Weapon Mining Laser Impact Weapon Heavy Flail Slashing Weapon Chainsword Build | -11 -10 -9 -8 -7 ------- Run | Yrd Mat Mat Mat Fac Slots Evolved 6 | . . 2 2 2 Power . | . . . . . Propulsion . | . . . . . Utility 6 | . . 2 2 2 Weapon . | . . . . . Parts Attached 39 | 9 . 3 13 14 Power 3 | 1 . . 1 1 Engine 2 | 1 . . . 1 Core 1 | . . . 1 . Reactor . | . . . . . Propulsion 8 | 2 . 2 2 2 Treads 6 | 2 . 2 2 . Leg . | . . . . . Wheel . | . . . . . Hover 2 | . . . . 2 Flight . | . . . . . Utility 18 | 2 . 1 7 8 Device 11 | 2 . . 3 6 Storage . | . . . . . Processor 4 | . . 1 1 2 Hackware . | . . . . . Protection 3 | . . . 3 . Artifact . | . . . . . Weapon 10 | 4 . . 3 3 Energy Gun 1 | . . . 1 . Energy Cannon . | . . . . . Ballistic Gun 4 | 2 . . 2 . Ballistic Cannon . | . . . . . Launcher . | . . . . . Special Weapon 3 | 2 . . . 1 Impact Weapon 1 | . . . . 1 Slashing Weapon 1 | . . . . 1 Piercing Weapon . | . . . . . Special Melee Weapon . | . . . . . Unidentified Prototypes 1 | . . . 1 . Parts Lost 27 | . . 1 8 18 Power 3 | . . . 1 2 Propulsion 5 | . . . 1 4 Utility 12 | . . . 4 8 Weapon 7 | . . 1 2 4 Highest Loss Streak 8 | . . 1 8 8 To Critical Strikes . | . . . . . Average Backups 4 | . 4 4 4 4 Power . | . . . . . Propulsion 1 | . . 1 2 2 Utility . | . . 1 1 . Weapon 1 | . 2 2 1 . Tool/Special . | . . . . . Unused Backups 6 | . 1 1 . 4 Power . | . . . . . Propulsion 3 | . . 1 . 2 Utility 1 | . . . . 1 Weapon 1 | . 1 . . . Tool/Special 1 | . . . . 1 Average Slot Usage (%) 87 | . 99 87 74 89 Engine 6 | . 14 11 2 1 Core 3 | . . . 5 5 Treads 18 | . 28 22 17 10 Hover 1 | . . . . 2 Device 22 | . 28 22 15 24 Processor 12 | . . 10 10 23 Protection 3 | . . . 6 5 Energy Gun 3 | . . . 5 5 Ballistic Gun 6 | . 5 11 7 5 Special Weapon 7 | . 22 11 2 . Peak Build Rating 36 | 9 9 16 27 36 Average Rating 18 | 5 8 15 18 29 On Entrance 12 | . 9 9 15 27 Avg Prop Armor Cover (%) . | . . . . . Naked Turns . | . . . . . Heaviest Build 27 | 10 10 9 27 26 Greatest Support 40 | 40 40 40 40 40 Greatest Overweight (x) 4 | 1 . . . 4 Average Overweight (x) . | . . . . . Largest Inventory Capacity 5 | 5 5 5 5 5 Average Capacity 5 | 5 5 5 5 5 Most Carried 5 | 3 5 5 5 5 Average Carried 4 | . 4 4 4 4 Final Capacity 5 | 5 5 5 5 5 Final Carried 5 | 3 5 5 5 4 Class Distribution -------------------- 48% | Scavenger-Mutant 34% | Scavenger-Skirmisher 15% | Mutant Dominant Class ---------------- Scavenger-Mutant | -10/Materials Scavenger-Mutant | -9/Materials Scavenger-Skirmisher | -8/Materials Scavenger-Skirmisher | -7/Factory Resources | -11 -10 -9 -8 -7 ----------- Run | Yrd Mat Mat Mat Fac Matter Collected 830 | 336 7 46 215 226 Remotely . | . . . . . Salvage Created 1067 | 241 61 46 320 399 Parts 81 | 26 13 2 21 19 Haulers Intercepted 1 | . . . . 1 Recyclers Shooed 1 | . . . . 1 Parts Field Recycled . | . . . . . Retrieved Matter . | . . . . . Parts Self-Destructed . | . . . . . Prevented . | . . . . . Parts Restored . | . . . . . Kills | -11 -10 -9 -8 -7 ------- Run | Yrd Mat Mat Mat Fac Combat Hostiles Destroyed 16 | . 3 1 6 6 Melee 1 | . . . . 1 Guns 12 | . 3 1 5 3 Cannons 1 | . . . 1 . Classes Destroyed 11 | 3 4 . 2 2 Worker 4 | 2 . . . 2 Builder 7 | . 2 . 4 1 Tunneler 9 | 7 . . 1 1 Hauler 1 | . . . . 1 Recycler 1 | 1 . . . . Watcher 1 | . 1 . . . Swarmer 2 | . 2 . . . Grunt 6 | . 1 1 2 2 Duelist 1 | . . . 1 . Sentry 4 | . . . 3 1 Programmer 3 | . . . . 3 Best Kill Streak 6 | 3 2 1 3 6 Combat Bots Only 3 | . 2 1 3 2 Max Kills in Single Turn 2 | 2 1 1 1 1 Gunslinging . | . . . . . Exploded . | . . . . . Melee 1 | . . . . 1 Uniques/NPCs Destroyed . | . . . . . Combat | -11 -10 -9 -8 -7 -------- Run | Yrd Mat Mat Mat Fac Hostile Shots Fired 424 | . 34 10 102 278 Missed 115 | . 9 3 15 88 Hits 309 | . 25 7 87 190 Melee 3 | . . . 3 . Projectile 306 | . 25 7 84 190 Critical Strikes 9 | . . . 7 2 Part Disruptions 1 | . . . . 1 Damage Taken 3724 | . 223 86 1361 2054 Core 933 | . 43 . 178 712 Absorbed by Shields . | . . . . . Core Remaining (%) 87 | 100 82 100 67 . Volleys Fired 137 | 23 14 23 35 42 Largest 2 | 2 2 1 2 2 Hottest 200 | 40 200 100 120 100 Shots Fired 216 | 46 28 23 49 70 Gun 193 | 46 16 22 42 67 Cannon . | . . . . . Launcher . | . . . . . Special 23 | . 12 1 7 3 Kinetic 137 | 46 16 22 14 39 Thermal 79 | . 12 1 35 31 Explosive . | . . . . . Electromagnetic . | . . . . . Robot Hit Streak 17 | 6 4 12 17 10 Robot Miss Streak 3 | 2 3 3 3 3 Penetration Max . | . . . . . Secondary Targets . | . . . . . Shots Hit Robots 169 | 31 13 17 38 70 Core Hits 60 | 14 7 4 18 17 Critical Kills . | . . . . . Critical Parts Destroyed 1 | . . . . 1 Critical Strikes 3 | . . . 2 1 Burn 2 | . . . 2 . Smash 1 | . . . . 1 Melee Attacks 33 | . . . . 33 Impact 20 | . . . . 20 Slashing 13 | . . . . 13 Piercing . | . . . . . Sneak Attacks 5 | . . . . 5 Combat Hostiles . | . . . . . Follow-up Attacks 2 | . . . . 2 Damage Inflicted 3212 | 307 211 133 665 1896 Guns 1958 | 307 91 128 543 889 Cannons . | . . . . . Explosions . | . . . . . Melee 1005 | . . . . 1005 Ramming 9 | . . 5 2 2 Kinetic 1108 | 307 91 128 123 459 Thermal 1090 | . 120 . 540 430 Explosive . | . . . . . Electromagnetic . | . . . . . Impact 505 | . . . . 505 Slashing 500 | . . . . 500 Piercing . | . . . . . Highest Corruption 6 | . . . . 6 Average Corruption 3 | . . . . 3 Corruption Purged . | . . . . . Corruption Blocked . | . . . . . Effects 20 | . . . . 20 Message Errors 7 | . . . . 7 Matter Fused 6 | . . . . 6 Heat Flow Errors 2 | . . . . 2 Energy Discharges 1 | . . . . 1 Parts Rejected 1 | . . . . 1 Data Loss (minor) 1 | . . . . 1 Data Loss (major) 1 | . . . . 1 Alerts 1 | . . . . 1 Overload Shots . | . . . . . Overflow Damage 111 | . . . . 111 Projectiles . | . . . . . Explosions . | . . . . . Melee 111 | . . . . 111 Knockbacks . | . . . . . Impact . | . . . . . Kinetic . | . . . . . Secondary . | . . . . . Self-Inflicted Damage . | . . . . . Shots . | . . . . . Rammed 6 | . . 1 3 2 Targets Rammed 6 | . . 1 3 2 Kicked . | . . . . . Crushed . | . . . . . Highest Temperature 548 | . 180 8 548 198 Average Temperature 90 | . 64 4 143 57 Received Heat Transfer 1092 | . 24 45 720 303 Effects 6 | . . . 6 . Energy Bleed 1 | . . . 1 . Matter Decay 1 | . . . 1 . Damage (major) 4 | . . . 4 . Siege Activations . | . . . . . Martial Activations . | . . . . . Shielding Activations . | . . . . . Robots Disrupted . | . . . . . Combat Hostiles . | . . . . . Robots Corrupted 1 | . . . . 1 Combat Hostiles 1 | . . . . 1 Parts Fried . | . . . . . Impact Corruptions 6 | . . . . 6 Robots Melted 1 | . . . . 1 Combat Hostiles 1 | . . . . 1 Parts Melted 7 | . 1 . 3 3 Heat Transferred 2128 | . 250 . 1175 703 Parts Sabotaged . | . . . . . Parts Stolen . | . . . . . Parts Stripped . | . . . . . Power Chain Reactions . | . . . . . Alert | -11 -10 -9 -8 -7 ------- Run | Yrd Mat Mat Mat Fac Maximum Alert Level . | . . . . . Low Security (%) 100 | 100 100 100 100 100 Level 1 . | . . . . . Level 2 . | . . . . . Level 3 . | . . . . . Level 4 . | . . . . . Level 5 . | . . . . . High Security . | . . . . . Max Security . | . . . . . Peak Influence 64 | 10 44 30 50 64 Initial 14 | . . 14 . 10 Average 6 | 1 3 2 7 10 Influence Increases 568 | 50 111 33 186 188 Destroy 0b10 Robot/C 320 | . 60 20 120 120 Destroy 0b10 Robot/NC 115 | 50 15 . 25 25 Destroy Leader 114 | . 22 10 40 42 Successful Hack 14 | . 12 2 . . Destroy Structure 5 | . 2 1 1 1 Influence Decreases 568 | 50 75 69 162 212 Entered New Map 36 | . . 22 . 14 Time Decay 473 | 50 75 47 131 170 Lost Part 59 | . . . 31 28 Squads Dispatched 7 | . 1 1 2 3 Investigation 1 | . . . 1 . Extermination 3 | . . . . 3 Reinforcement 3 | . 1 1 1 . Assault . | . . . . . Garrison . | . . . . . Intercept . | . . . . . Searches Triggered . | . . . . . Construction Impeded 1 | . . 1 . . Haulers Reinforced . | . . . . . Active Scanning Responses . | . . . . . Cargo Convoy Interrupts . | . . . . . Stealth | -11 -10 -9 -8 -7 --------- Run | Yrd Mat Mat Mat Fac Distress Signals 5 | . 2 . 2 1 Communications Jammed . | . . . . . Distress Signals . | . . . . . Times Spotted 41 | . 8 8 11 14 Peak Tracking Total 6 | . 4 3 5 6 Tactical Retreats . | . . . . . Traps | -11 -10 -9 -8 -7 ------- Run | Yrd Mat Mat Mat Fac Traps Triggered 1 | . 1 . . . Indirectly . | . . . . . Trap Hack Attempts . | . . . . . Triggered . | . . . . . Disarmed . | . . . . . Reprogrammed . | . . . . . Reused . | . . . . . Traps Extracted . | . . . . . Installed . | . . . . . Triggered . | . . . . . Machines | -11 -10 -9 -8 -7 ---------- Run | Yrd Mat Mat Mat Fac Machines Disabled . | . . . . . Max in Single Turn . | . . . . . Machines Repaired . | . . . . . Machines Dismantled . | . . . . . Machines Sabotaged . | . . . . . Overloaded Fab Kills . | . . . . . Hacking | -11 -10 -9 -8 -7 --------- Run | Yrd Mat Mat Mat Fac Machines Accessed 10 | . 4 2 2 2 Terminals 5 | . 3 . 1 1 Fabricators . | . . . . . Repair Stations . | . . . . . Recycling Units 3 | . 1 . 1 1 Scanalyzers 2 | . . 2 . . Garrison Access . | . . . . . Total Hacks 22 | . 10 5 4 3 Successful 8 | . 4 2 1 1 Failed 13 | . 6 2 3 2 Catastrophic 1 | . . . . 1 Database Lockouts 1 | . . 1 . . Manual 13 | . 9 . 2 2 Terminals 13 | . 9 . 2 2 Fabricators . | . . . . . Repair Stations . | . . . . . Recycling Units 4 | . 1 . 2 1 Scanalyzers 5 | . . 5 . . Garrison Access . | . . . . . Terminal Hacks . | . . . . . Fabricator Hacks . | . . . . . Repair Station Hacks . | . . . . . Recycling Unit Hacks 3 | . 1 . 1 1 Report Inventory 3 | . 1 . 1 1 Scanalyzer 2 | . . 2 . . Retrieve Study 2 | . . 2 . . Garrison Access Hacks . | . . . . . Unauthorized Hacks 3 | . 3 . . . Terminals 3 | . 3 . . . Assimilate 3 | . 3 . . . Fabricators . | . . . . . Repair Stations . | . . . . . Recycling Units . | . . . . . Scanalyzers . | . . . . . Garrison Access . | . . . . . Data Cores Recovered . | . . . . . Used . | . . . . . Hacking Detections 7 | . 3 1 2 1 Full Trace Events . | . . . . . Feedback Events . | . . . . . Feedback Blocked . | . . . . . Robot Schematics Acquired . | . . . . . Robots Built . | . . . . . Authchips . | . . . . . Time . | . . . . . Total Robot Build Rating . | . . . . . Part Schematics Acquired . | . . . . . Parts Built . | . . . . . Authchips . | . . . . . Time . | . . . . . Total Part Build Rating . | . . . . . Part Studies Acquired 2 | . . 2 . . Parts Repaired . | . . . . . Time . | . . . . . Parts Recycled . | . . . . . Recycled Matter . | . . . . . Retrieved Matter . | . . . . . Retrieved Components . | . . . . . Parts Scanalyzed . | . . . . . Part Schematics Acquired . | . . . . . Parts Damaged . | . . . . . Bothacking | -11 -10 -9 -8 -7 ------------ Run | Yrd Mat Mat Mat Fac Used RIF Installer . | . . . . . Robots Hacked . | . . . . . Non-combat . | . . . . . Combat . | . . . . . Robot Hacks Applied . | . . . . . Relay Couplers Released . | . . . . . Fabnet Peak Effective % . | . . . . . Robots Rewired . | . . . . . Allies Hacked . | . . . . . Hacks Repelled . | . . . . . Allies | -11 -10 -9 -8 -7 -------- Run | Yrd Mat Mat Mat Fac Total Allies . | . . . . . Largest Group . | . . . . . Highest-Rated Group . | . . . . . Highest-Rated Ally . | . . . . . Total Orders . | . . . . . Ally Attacks . | . . . . . Total Damage . | . . . . . Kills . | . . . . . Allies Corrupted . | . . . . . Allies Melted . | . . . . . Intel | -11 -10 -9 -8 -7 ------- Run | Yrd Mat Mat Mat Fac Active Infowar (turns) 3691 | 185 794 719 673 1320 Optics 1320 | . . . . 1320 Sensors 1053 | . . . 141 912 Terrain 3199 | 31 794 719 636 1019 Structural 1566 | . . . 371 1195 Traps 903 | . . . . 903 Seismic 2208 | 185 794 719 302 208 Robot Analysis Total . | . . . . . Derelict Logs Recovered . | . . . . . Drone Launches . | . . . . . Drone Recoveries . | . . . . . Exploration | -11 -10 -9 -8 -7 ------------- Run | Yrd Mat Mat Mat Fac Turns Passed 3974 | 285 794 719 856 1320 Spaces Moved 1637 | 131 335 285 386 500 Core 20 | 5 . . . 15 Treads 1511 | 126 335 285 386 379 Legs . | . . . . . Wheels . | . . . . . Hover 106 | . . . . 106 Flight . | . . . . . Fastest Speed 50 | 50 160 160 165 50 Average Speed 157 | 156 160 168 166 142 Slowest Speed 250 | 160 160 170 170 250 Overloaded Moves . | . . . . . Propulsion Burnouts . | . . . . . Robots Hopped . | . . . . . Potential Cave-ins . | . . . . . Cave-ins Triggered . | . . . . . Exploration Rate (%) 19 | 7 36 23 24 8 Regions Visited 4 Branch Regions . Pre-discovered Areas . | . . . . . Known Exits Taken . | . . . . . Unknown Exits Taken 4 | 1 1 1 1 . Scrap Searched . | . . . . . Spaces Dug 1 | . . 1 . . Terrain Destroyed 4 | . 2 1 1 . Melee . | . . . . . Projectile 4 | . 2 1 1 . AOE . | . . . . . Terrain Rammed . | . . . . . Walls Destroyed . | . . . . . Machines Disabled . | . . . . . Actions | -11 -10 -9 -8 -7 --------- Run | Yrd Mat Mat Mat Fac Total 2720 | 166 543 503 530 978 Wait 848 | . 187 187 90 384 Move 1633 | 130 334 284 385 500 Hop . | . . . . . Pick Up 14 | 4 4 2 1 3 Fast Attach 27 | 6 . . 11 10 Attach 8 | 1 1 1 1 4 Detach . | . . . . . Swap 10 | 2 2 2 2 2 Drop 7 | . 1 3 2 1 Fire 137 | 23 14 23 35 42 Melee 30 | . . . . 30 Ram 2 | . . . . 2 Kick . | . . . . . Crush 4 | . . 1 3 . Escape Stasis . | . . . . . Rewire . | . . . . . Trap . | . . . . . Miscellaneous . | . . . . . Route ------- -11/Scrapyard -10/Materials (discovered 2 exits: *Mat / [*Min]) -9/Materials -8/Materials -7/Factory History --------- Turn | Location | Event 8 | -11/Scrapyard | Discovered new exit (range 16) 286 | -11/Scrapyard | Entered Materials 314 | -10/Materials | Build established: Scavenger-Mutant 786 | -10/Materials | Derelicts attacked the area 967 | -10/Materials | Discovered new exit (range 14) 1018 | -10/Materials | Discovered new exit (range 10) 1080 | -10/Materials | Entered another Materials area 1080 | -9/Materials | Evolved 2 slots: Utility x2 1097 | -9/Materials | Build established: Mutant 1360 | -9/Materials | Central database locked down 1398 | -9/Materials | Build established: Scavenger-Mutant 1760 | -9/Materials | Discovered new exit (range 13) 1799 | -9/Materials | Entered another Materials area 1799 | -8/Materials | Evolved 2 slots: Utility x2 2154 | -8/Materials | Lost 8 parts (1p1n4u2w) 2554 | -8/Materials | Build established: Scavenger-Skirmisher 2635 | -8/Materials | Discovered new exit (range 8) 2655 | -8/Materials | Entered Factory 2655 | -7/Factory | Evolved 2 slots: Utility x2 3665 | -7/Factory | Core integrity fell below 50% 3699 | -7/Factory | Core integrity fell below 20% 3705 | -7/Factory | Lost 8 parts (1p1n4u2w) 3975 | -7/Factory | Destroyed by S-27 Virus with Autogun Last Messages --------------- 03956_ Hvy. Flail follow-up attack on S-27 Virus. 03956_ Destroyed VTOL Module. 03956_ S-27 Virus system corrupted by crushing effect. 03956_ Gravmag System destroyed. 03956_ Lgt. Ion Engine destroyed. 03961_ Chainsword destroyed. 03961_ Hvy. Flail destroyed. 03962_ K-01 Serf cleans the Power Conduit. 03964_ Slammed into S-27 Virus. 03964_ Actuator Array broken. 03964_ Destabilizing: Short circuit. 03965_ Structural Scanner destroyed. 03967_ K-01 Serf cleans the Power Conduit. 03967_ S-27 Virus IFF system glitched. 03967_ Seismic Detector destroyed. 03967_ Slammed into S-27 Virus. 03967_ Actuator Array broken. 03967_ Destabilizing: Short circuit. 03971_ Broken Actuator Array destroyed. 03973_ K-01 Serf cleans the Power Conduit. Map ----- +----------------------------------------------------+ | ?????????????????????????????????????????????????? | | ?????????????????????????????????????????????????? | | ?????????????????????????????????????????????????? | | ?????????????????????????????????????????????????? | | ?????????????????????????????????????????????????? | | ????#????????????????????????????????????????????? | | ??????? ? ?????????????????????????????????????? | | ??+ ??? ? ??????????????????????????????????? | | ? #### ##?? ????????????????????????????????? | | "?? # ? ## ##### ????????????????????????? | | ""??+ ##?######### ????????????????????????? | | """ # ###+##?## ##????????????????????????? | | """ ## ## ? ## ##????????????????????????? | | ## ## ? ## ##????????????????????????? | | ## ## ?"" ## [ ##?????#??????????????????? | | ###### ## """ ## ##???? #??????????????????? | | ###### ## """ ## ##???? ##?????????????????? | | % + ## ##???? ##?????????????????? | | ##+########## ##???? ##?????????????????? | | # ### ##?### ##?????????????????? | | " #! ! ### ###### ##?????????????????? | | T" # ! #######+##### a##?????????????????? | | "" # + !/ ##?????????????????? | | #######+###### // ##?????????????????? | | ##### ######" // t###????????????????? | | ##+## ### % ####" @ ###????????????????? | | ==%# ### ####" ##????????????????? | | %==+* ! ####T s ##????????????????? | | ! =# ### ####" s ##????????????????? | | | # ### ####" ##????????????????? | | + #####+######" " ss" ##????????????????? | | ] # # ## " " ##????????????????? | | +#### # ## " " ##????????????????? | | #### # ## " " ##????????????????? | | ??## # ## " " ###????????????????? | | #### #"?? + " " ###????????????????? | | #?## #"? """ ## " !! " ##?????????????????? | | ?#?## #"? """"" ## " !! k" ##?????????????????? | | ##### # """"" ## " !! " ##?????????????????? | | #?### ########?### ?????????????????? | | #?### ####?#?#?### k ??????????????????? | | ?#### ####???????# #### ????????????????? | | ##### ############ ##########????????????????? | | ### ########## ????? ????????????????? | | ### " = ##### ??????????????????????????? | | "T ^ ^ ???????????????????????????? | | ## ????????????????????????????? | | ##!== ## """" """"????????????????????????????? | | ####+#### """" ?""?????????????????????????????? | | ?## [% # """" ?"??????????????????????????????? | +----------------------------------------------------+ Best States ------------- Heat Dissipation 34 Energy Generation 14 Energy Capacity 250 Matter Stores 300 Matter Capacity 300 Sight Range 18 Robot Scan Range 15 Terrain Scan Range 16 Terrain Scan Density 110 Armor Coverage 750 Evasion (%) 53 Targeting Accuracy 8 Recoil Reduction 2 Item Schematics ----------------- None Robot Schematics ------------------ None Fabricated ------------ Nothing Repaired ---------- Nothing Studied --------- Lgt. Assault Rifle | -9/Materials | Hacked Ion Engine | -9/Materials | Hacked Alien Tech Used ----------------- None Achievements -------------- Infodabbler Challenges ------------ None Game ------ Seed ExperimentalEfficiencySword Manual? 0 Play Time 00:32:51 Cumulative 23.5 hours Start 2026.01.27 @ 17:08:58 End 2026.01.27 @ 17:57:57 Sessions 1 Manual Loads 0 Difficulty Rogue Special Mode None Game No. 46 Rogue 46 Adventurer 0 Explorer 0 Win Type - Total 0 Types 0/0/0/0/0/0/0/0/0/0 Lore% 12 Gallery% 21 Achievement% 17 Wizard Run 0 Options --------- Layout 0 ASCII 0 Keyboard 1 Movement Arrows Keybinds 0 Fullscreen 1 Font 18/Smallcaps Map View 38x25 Zoom Use 84% Tactical HUD 1 Map Filters NONE Filters NONE Steam 1 RUN: 9839790f-5743-42b1-b541-361bb38e0c9a